bitfinex-derivatives/quotes_SOLF0:USTF0_20250907
["timestamp","ask_amount","ask_price","bid_price","bid_amount"]
[1757247108368,78.87985114,203.84,203.78,119.14]
[1757247108668,8.1,203.83,203.73,1.3]
[1757247108865,8.1,203.83,203.74,17.92]
[1757247109064,78.87985114,203.84,203.74,17.92]
[1757247109761,7.66,203.83,203.74,17.92]
[1757247109967,78.87985114,203.84,203.74,17.92]
[1757247110165,7.66,203.83,203.74,17.92]
[1757247110962,78.87985114,203.84,203.74,17.92]
[1757247111159,7.66,203.83,203.74,17.92]
[1757247111871,78.87985114,203.84,203.74,17.92]
[1757247112067,7.66,203.83,203.74,17.92]
[1757247112670,78.87985114,203.84,203.74,17.92]
[1757247112869,7.66,203.83,203.74,17.92]
[1757247113270,7.66,203.83,203.73,5.7167]
[1757247113463,78.87985114,203.84,203.74,17.38]
[1757247113968,78.87985114,203.84,203.74,21.7965]
[1757247114566,7.66,203.83,203.74,4.4165]
[1757247114766,78.87985114,203.84,203.75,27.84]
[1757247115270,78.87985114,203.84,203.75,35.28]
[1757247115465,7.66,203.83,203.75,35.28]
[1757247116276,78.87985114,203.84,203.75,35.28]
[1757247116870,7.66,203.83,203.75,35.28]
[1757247117170,7.66,203.83,203.74,4.4165]
[1757247117472,7.66,203.83,203.75,16.34]
[1757247117673,7.66,203.83,203.75,1.3]
[1757247118068,7.66,203.83,203.75,12.42]
[1757247118274,7.66,203.83,203.75,1.3]
[1757247118776,7.66,203.83,203.75,12.4]
[1757247119470,7.66,203.83,203.75,16.8163]
[1757247120371,7.66,203.83,203.77,1.3]
[1757247121973,7.66,203.83,203.77,5.7159]
[1757247123280,7.66,203.83,203.79,1.3]
[1757247123578,7.66,203.88,203.79,1.3]
[1757247124281,5.51030216,203.88,203.76,119.41598987]
[1757247124474,5.51030216,203.88,203.77,117.76]
[1757247124678,7.66,203.87,203.77,117.76]
[1757247125079,7.66,203.87,203.77,122.1758]
[1757247125378,5.51030216,203.88,203.77,122.1758]
[1757247125973,7.66,203.87,203.77,122.1758]
[1757247126875,5.51030216,203.88,203.77,122.1758]
[1757247127079,7.66,203.87,203.78,1.3]
[1757247127380,5.51030216,203.87,203.78,120.34]
[1757247127574,7.66,203.86,203.78,120.34]
[1757247127974,5.51030216,203.87,203.78,120.34]
[1757247128170,7.66,203.86,203.78,120.34]
[1757247128480,5.51030216,203.87,203.78,120.34]
[1757247128679,7.66,203.86,203.78,120.34]
[1757247129077,5.51030216,203.87,203.78,120.34]
[1757247129679,8.29685648,203.89,203.78,120.34]
[1757247129680,5.51030216,203.86,203.78,120.34]
[1757247130276,7.66,203.85,203.78,120.34]
[1757247130481,5.51030216,203.86,203.78,120.34]
[1757247130781,5.51030216,203.87,203.78,120.34]
[1757247130982,7.66,203.86,203.78,120.34]
[1757247131179,7.66,203.85,203.78,120.34]
[1757247131573,7.66,203.85,203.78,124.7556]
[1757247136180,7.66,203.85,203.78,120.34]
[1757247136578,5.51030216,203.86,203.78,120.34]
[1757247136778,7.66,203.85,203.78,120.34]
[1757247137377,7.66,203.85,203.78,119.04]
[1757247137583,13.17030216,203.88,203.79,1.3]
[1757247137878,13.17030216,203.88,203.8,4.57835511]
[1757247138181,13.17030216,203.88,203.82,1.3]
[1757247138381,7.66,203.87,203.84,1.3]
[1757247138576,7.66,203.87,203.85,4.57835511]
[1757247138773,7.66,203.87,203.84,1.3]
[1757247138979,5.51030216,203.88,203.85,4.57816361]
[1757247139181,7.66,203.87,203.84,1.3]
[1757247139376,7.66,203.87,203.85,4.57766506]
[1757247139572,7.66,203.87,203.84,1.3]
[1757247139773,7.66,203.87,203.85,4.57810173]
[1757247139976,7.66,203.87,203.84,1.3]
[1757247140180,7.66,203.87,203.85,4.57810173]
[1757247140382,7.66,203.87,203.84,1.3]
[1757247140580,7.66,203.87,203.85,4.57815645]
[1757247140780,7.66,203.87,203.84,1.3]
[1757247140987,7.66,203.87,203.85,4.57815645]
[1757247141177,7.66,203.87,203.84,1.3]
[1757247141481,7.66,203.87,203.85,4.5777697]
[1757247141682,7.66,203.87,203.86,4.5777697]
[1757247142585,5.51030216,203.88,203.86,4.5777697]
[1757247142785,13.33030216,203.89,203.87,5.8680663]
[1757247142983,5.51030216,203.89,203.82,1.29]
[1757247143183,5.51030216,203.89,203.83,4.57802952]
[1757247143486,5.51030216,203.89,203.84,5.86802952]
[1757247143680,5.51030216,203.89,203.85,4.57802952]
[1757247143881,5.51030216,203.89,203.86,4.57802952]
[1757247144078,5.51030216,203.89,203.84,1.29]
[1757247144279,7.82,203.88,203.85,4.5781429]
[1757247144484,5.51030216,203.89,203.86,4.5781429]
[1757247144684,5.51030216,203.89,203.84,1.29]
[1757247144885,5.51030216,203.89,203.85,5.86833279]
[1757247145087,5.51030216,203.89,203.86,4.57833279]
[1757247145286,7.82,203.88,203.81,1.29]
[1757247145481,7.82,203.88,203.82,4.57852431]
[1757247145679,5.51030216,203.89,203.83,4.57852431]
[1757247145878,5.51030216,203.89,203.84,5.86852431]
[1757247146077,7.82,203.88,203.85,4.57852431]
[1757247146287,7.82,203.88,203.86,4.57852431]
[1757247146586,7.82,203.88,203.87,4.57852431]
[1757247147183,7.82,203.88,203.84,1.29]
[1757247147387,5.51030216,203.89,203.85,4.57854072]
[1757247147688,5.51030216,203.89,203.86,4.57854072]
[1757247147888,7.82,203.88,203.87,4.57854072]
[1757247148187,13.33030216,203.88,203.87,4.57854072]
[1757247150186,7.82,203.88,203.87,4.57854072]
[1757247150387,5.51030216,203.89,203.87,5.86854072]
[1757247150591,7.82,203.89,203.88,4.57854072]
[1757247154295,7.82,203.89,203.87,1.29]
[1757247154500,13.33030216,203.91,203.88,5.88734939]
[1757247154692,7.82,203.9,203.88,1.31]
[1757247156198,7.82,203.9,203.89,4.57682845]
[1757247158103,7.82,203.9,203.89,4.5755862]
[1757247168817,13.33030216,203.92,203.9,1.31]
[1757247169021,7.82,203.92,203.91,4.5755862]
[1757247169220,7.82,203.94,203.91,5.8855862]
[1757247169413,5.51030216,203.96,203.92,4.5755862]
[1757247169614,5.51030216,203.96,203.91,1.31]
[1757247169918,5.51030216,203.96,203.92,4.58236046]
[1757247170113,5.51030216,203.96,203.91,1.31]
[1757247170414,7.66,203.95,203.91,1.31]
[1757247170914,5.51030216,203.96,203.91,1.31]
[1757247171315,7.66,203.95,203.91,1.31]
[1757247171515,5.51030216,203.96,203.91,1.31]
[1757247171820,7.66,203.95,203.91,1.31]
[1757247172220,5.51030216,203.96,203.91,1.31]
[1757247172518,7.66,203.95,203.91,1.31]
[1757247172714,5.51030216,203.96,203.91,1.31]
[1757247172914,7.66,203.95,203.91,1.31]
[1757247173519,5.51030216,203.96,203.91,1.31]
[1757247174316,5.51030216,203.97,203.91,1.31]
[1757247174516,7.66,203.96,203.91,1.31]
[1757247174816,5.51030216,203.97,203.91,1.31]
[1757247175012,7.66,203.96,203.91,1.31]
[1757247175216,5.51030216,203.97,203.91,1.31]
[1757247175914,7.66,203.96,203.85,4.4141]
[1757247176116,7.66,203.95,203.87,1.31]
[1757247176412,7.66,203.95,203.89,1.31]
[1757247176612,5.51030216,203.96,203.9,4.34215694]
[1757247176820,7.66,203.95,203.86,30.8]
[1757247177016,7.66,203.95,203.88,1.31]
[1757247177215,7.66,203.95,203.89,4.34256903]
[1757247177518,5.51030216,203.96,203.9,4.34256903]
[1757247177722,7.66,203.95,203.89,1.31]
[1757247177913,7.66,203.95,203.9,4.34271832]
[1757247178111,7.66,203.95,203.89,1.31]
[1757247178112,7.66,203.95,203.87,1.31]
[1757247178316,7.66,203.95,203.89,1.31]
[1757247178517,5.51030216,203.96,203.9,4.34296861]
[1757247178821,7.66,203.95,203.87,1.31]
[1757247179023,7.66,203.95,203.89,1.31]
[1757247179214,5.51030216,203.96,203.9,4.34296454]
[1757247179422,7.66,203.95,203.89,1.31]
[1757247179718,5.51030216,203.96,203.9,4.34331521]
[1757247180018,7.66,203.95,203.87,1.31]
[1757247180224,7.66,203.95,203.89,1.31]
[1757247180516,7.66,203.95,203.9,4.34331582]
[1757247180821,7.66,203.92,203.86,1.31]
[1757247181020,5.51030216,203.93,203.87,4.34537866]
[1757247181223,5.51030216,203.93,203.88,4.34537866]
[1757247181423,7.66,203.92,203.86,1.31]
[1757247181719,7.66,203.92,203.83,82.92]
[1757247181720,5.51030216,203.93,203.87,4.34626577]
[1757247181922,7.66,203.92,203.84,1.31]
[1757247182123,7.66,203.92,203.85,4.34626644]
[1757247182319,13.17030216,203.92,203.86,4.34626644]
[1757247182524,13.17030216,203.92,203.87,4.34626644]
[1757247182719,13.17030216,203.92,203.84,1.31]
[1757247183023,13.17030216,203.92,203.85,4.34762864]
[1757247183223,13.17030216,203.92,203.86,5.65762864]
[1757247183425,7.66,203.91,203.87,5.65762864]
[1757247183621,5.51030216,203.92,203.87,1.31]
[1757247183823,7.66,203.91,203.87,1.31]
[1757247184027,5.51030216,203.92,203.87,1.31]
[1757247184227,7.66,203.91,203.84,96.93]
[1757247184423,7.66,203.91,203.85,4.34850079]
[1757247184624,7.66,203.91,203.86,4.34850079]
[1757247184926,5.51030216,203.92,203.87,4.34850079]
[1757247185223,7.66,203.91,203.84,96.93]
[1757247185423,7.66,203.91,203.85,4.34889423]
[1757247185722,5.51030216,203.92,203.86,4.34889423]
[1757247185928,7.66,203.91,203.87,5.65889423]
[1757247186218,5.51030216,203.92,203.85,1.31]
[1757247186424,5.51030216,203.93,203.87,1.31]
[1757247186618,7.66,203.92,203.89,1.31]
[1757247186814,5.51030216,203.93,203.89,1.31]
[1757247187223,7.66,203.91,203.89,1.31]
[1757247189029,13.17030216,203.94,203.85,1.31]
[1757247189231,13.17030216,203.94,203.87,1.31]
[1757247189429,5.51030216,203.94,203.88,4.34881444]
[1757247189625,5.51030216,203.94,203.89,5.65881444]
[1757247189930,7.66,203.93,203.89,1.31]
[1757247190326,7.66,203.92,203.89,1.31]
[1757247191730,7.66,203.92,203.9,4.34971306]
[1757247191931,7.66,203.92,203.89,1.31]
[1757247192231,7.66,203.93,203.9,4.35369918]
[1757247192532,5.51030216,203.94,203.89,1.31]
[1757247192730,5.51030216,203.94,203.9,4.35386133]
[1757247192926,5.51030216,203.94,203.89,1.31]
[1757247193131,7.66,203.93,203.9,4.35386133]
[1757247193331,5.51030216,203.94,203.91,4.3542848]
[1757247193534,5.51030216,203.94,203.89,1.31]
[1757247193725,5.51030216,203.94,203.9,4.35471315]
[1757247194032,7.66,203.93,203.91,4.35471315]
[1757247194231,5.51030216,203.94,203.89,1.31]
[1757247194426,5.51030216,203.92,203.89,1.31]
[1757247194626,13.17030216,203.93,203.9,4.35532659]
[1757247194834,7.66,203.92,203.9,1.31]
[1757247195025,7.66,203.92,203.91,4.35526403]
[1757247196639,5.51030216,203.93,203.91,5.66526403]
[1757247196838,5.51030216,203.93,203.91,1.31]
[1757247197041,7.66,203.93,203.91,1.31]
[1757247197738,7.66,203.93,203.92,4.3557337]
[1757247204743,7.66,203.93,203.89,1.27]
[1757247204940,7.9,203.92,203.9,4.35632483]
[1757247205239,7.9,203.92,203.91,4.35632483]
[1757247208933,7.9,203.92,203.84,4.4143]
[1757247208934,13.41030216,203.92,203.85,1.27]
[1757247209242,13.41030216,203.92,203.86,4.35809754]
[1757247209446,13.41030216,203.92,203.85,1.27]
[1757247212744,5.51030216,203.91,203.85,1.27]
[1757247212944,7.9,203.91,203.85,1.29]
[1757247227662,13.41030216,203.91,203.85,1.29]
[1757247227857,7.9,203.91,203.85,1.29]
[1757247228463,13.41030216,203.91,203.85,1.29]
[1757247228663,7.9,203.91,203.85,1.29]
[1757247230167,13.41030216,203.91,203.85,1.29]
[1757247241368,7.47,203.9,203.83,119.96]
[1757247241575,5.51030216,203.91,203.83,119.96]
[1757247241776,5.51030216,203.91,203.84,118.62]
[1757247242376,7.47,203.9,203.84,118.62]
[1757247245276,7.47,203.9,203.85,1.3]
[1757247245470,7.47,203.9,203.84,119.92]
[1757247245876,7.47,203.9,203.84,124.3344]
[1757247253185,12.98030216,203.9,203.84,124.3344]
[1757247253782,5.51030216,203.91,203.85,1.3]
[1757247253983,5.51030216,203.92,203.85,1.3]
[1757247254284,12.98030216,203.93,203.85,1.3]
[1757247254888,12.98030216,203.93,203.87,5.7137]
[1757247261296,7.47,203.93,203.87,1.3]
[1757247267591,12.98030216,203.93,203.87,1.3]
[1757247271499,5.51030216,203.93,203.87,33.84]
[1757247271700,7.73,203.92,203.87,33.84]
[1757247271998,7.73,203.92,203.87,86.3]
[1757247272193,5.51030216,203.93,203.87,86.3]
[1757247272797,7.73,203.92,203.87,86.3]
[1757247273000,5.51030216,203.93,203.87,86.3]
[1757247273498,7.73,203.92,203.87,85.0]
[1757247273698,5.51030216,203.93,203.87,85.0]
[1757247274102,7.73,203.92,203.87,85.0]
[1757247274500,5.51030216,203.93,203.87,85.0]
[1757247275902,7.73,203.92,203.87,85.0]
[1757247276199,7.73,203.92,203.87,86.28]
[1757247276400,5.51030216,203.93,203.87,85.0]
[1757247276801,7.73,203.92,203.87,86.28]
[1757247277001,5.51030216,203.93,203.87,85.0]
[1757247277799,7.73,203.92,203.87,86.28]
[1757247278004,5.51030216,203.93,203.87,85.0]
[1757247278204,7.73,203.92,203.87,86.28]
[1757247278398,5.51030216,203.93,203.87,86.28]
[1757247278702,5.51030216,203.93,203.87,85.0]
[1757247278904,7.73,203.92,203.87,86.28]
[1757247279099,5.51030216,203.93,203.87,85.0]
[1757247279497,7.73,203.92,203.87,86.28]
[1757247279696,5.51030216,203.93,203.87,85.0]
[1757247281010,7.73,203.92,203.87,86.28]
[1757247281211,5.51030216,203.93,203.87,85.0]
[1757247282211,7.73,203.91,203.88,1.28]
[1757247285218,7.73,203.92,203.88,1.28]
[1757247285412,5.51030216,203.92,203.87,85.0]
[1757247285613,7.73,203.92,203.88,1.28]
[1757247285811,5.51030216,203.93,203.88,1.28]
[1757247286208,7.73,203.92,203.88,1.28]
[1757247286507,5.51030216,203.93,203.86,118.6]
[1757247286708,7.73,203.92,203.86,118.6]
[1757247287317,13.24030216,203.92,203.86,118.6]
[1757247288516,13.24030216,203.92,203.85,1.28]
[1757247288718,13.24030216,203.92,203.86,118.6]
[1757247289218,5.51030216,203.92,203.86,118.6]
[1757247289519,8.07,203.91,203.85,119.89]
[1757247289915,13.58030216,203.91,203.85,119.89]
[1757247291122,5.51030216,203.9,203.86,118.6]
[1757247291315,8.07,203.89,203.87,1.29]
[1757247292712,5.51030216,203.89,203.85,118.6]
[1757247292918,8.07,203.88,203.85,118.6]
[1757247293113,5.51030216,203.89,203.85,118.6]
[1757247293318,8.07,203.88,203.85,118.6]
[1757247293518,5.51030216,203.88,203.85,118.6]
[1757247294422,8.07,203.87,203.85,118.6]
[1757247295824,5.51030216,203.88,203.85,118.6]
[1757247297224,8.07,203.87,203.85,118.6]
[1757247297420,8.07,203.88,203.85,118.6]
[1757247298118,5.51030216,203.89,203.85,118.6]
[1757247298523,8.07,203.87,203.85,118.6]
[1757247298920,5.51030216,203.88,203.85,118.6]
[1757247299120,8.07,203.87,203.85,118.6]
[1757247299327,5.51030216,203.88,203.85,118.6]
[1757247299524,8.07,203.87,203.85,118.6]
[1757247299929,5.51030216,203.88,203.85,118.6]
[1757247300926,8.07,203.87,203.82,1.29]
[1757247301126,8.07,203.87,203.81,230.49841065]
[1757247301127,8.07,203.87,203.81,231.78841065]
[1757247301727,13.58030216,203.87,203.78,1.29]
[1757247301924,5.51030216,203.87,203.79,118.62]
[1757247302231,8.07,203.85,203.8,1.29]
[1757247302522,5.51030216,203.86,203.8,1.29]
[1757247302722,0.03329891,203.85,203.8,1.29]
[1757247303326,8.07,203.84,203.8,1.29]
[1757247303722,0.03329891,203.85,203.8,1.29]
[1757247304930,8.07,203.84,203.8,1.29]
[1757247305130,0.03329891,203.85,203.8,1.29]
[1757247305327,8.07,203.84,203.8,1.29]
[1757247305524,0.03329891,203.85,203.8,1.29]
[1757247305833,8.07,203.84,203.8,1.29]
[1757247306029,0.03329891,203.85,203.8,1.29]
[1757247306231,8.07,203.84,203.8,1.29]
[1757247306732,0.03329891,203.85,203.8,1.29]
[1757247306933,8.07,203.84,203.8,1.29]
[1757247307335,0.03329891,203.85,203.8,1.29]
[1757247308235,8.07,203.84,203.8,1.29]
[1757247308634,0.03329891,203.85,203.8,1.29]
[1757247308834,8.07,203.84,203.8,1.29]
[1757247309731,0.03329891,203.85,203.77,449.55]
[1757247310036,8.07,203.84,203.77,449.55]
[1757247310534,8.07,203.84,203.78,1.29]
[1757247318449,8.07,203.84,203.77,448.26]
[1757247318641,8.07,203.84,203.77,449.55]
[1757247319143,0.03329891,203.85,203.77,449.55]
[1757247319350,7.78,203.84,203.77,449.55]
[1757247319747,0.03329891,203.85,203.77,449.55]
[1757247320347,7.78,203.84,203.77,449.55]
[1757247320746,0.03329891,203.85,203.77,449.55]
[1757247320946,7.78,203.84,203.77,449.55]
[1757247326244,0.03329891,203.85,203.77,449.55]
[1757247326449,7.78,203.84,203.77,449.55]
[1757247327851,7.78,203.84,203.78,1.28]
[1757247328045,0.03329891,203.85,203.79,118.64]
[1757247328746,7.78,203.84,203.79,118.64]
[1757247328946,0.03329891,203.85,203.79,118.64]
[1757247329152,7.78,203.84,203.79,118.64]
[1757247329353,0.03329891,203.85,203.79,118.64]
[1757247330356,5.51030216,203.83,203.77,1.28]
[1757247330554,5.51030216,203.82,203.77,1.28]
[1757247331056,7.78,203.81,203.77,1.28]
[1757247331254,5.51030216,203.82,203.77,1.28]
[1757247331555,7.78,203.81,203.77,1.28]
[1757247331953,5.51030216,203.82,203.77,1.28]
[1757247332254,7.78,203.81,203.71,1.28]
[1757247332449,7.78,203.79,203.73,1.28]
[1757247335452,7.78,203.78,203.7,21.34]
[1757247335653,7.78,203.78,203.69,1.3]
[1757247335654,7.78,203.77,203.69,1.3]
[1757247335851,13.29030216,203.77,203.69,1.3]
[1757247337249,7.78,203.75,203.69,1.3]
[1757247341156,13.29030216,203.76,203.66,1.3]
[1757247344360,7.78,203.76,203.66,1.3]
[1757247345758,7.78,203.76,203.67,1.3]
[1757247346960,7.78,203.76,203.68,1.3]
[1757247360171,5.51030216,203.78,203.65,449.8]
[1757247360664,7.62,203.77,203.65,449.8]
[1757247360869,7.62,203.77,203.66,1.3]
[1757247361071,13.13030216,203.77,203.66,1.3]
[1757247361471,7.62,203.77,203.66,1.3]
[1757247361970,13.13030216,203.77,203.66,1.3]
[1757247362573,7.62,203.77,203.66,1.3]
[1757247364177,13.13030216,203.77,203.66,1.3]
[1757247367072,5.51030216,203.76,203.66,1.3]
[1757247367269,7.62,203.75,203.66,1.3]
[1757247369675,13.13030216,203.75,203.66,1.3]
[1757247370574,7.62,203.75,203.66,1.3]
[1757247371081,13.13030216,203.75,203.66,1.3]
[1757247373175,5.51030216,203.74,203.66,1.3]
[1757247373479,7.62,203.73,203.66,1.3]
[1757247374681,13.13030216,203.73,203.66,1.3]
[1757247376185,5.51030216,203.72,203.66,1.3]
[1757247376488,7.62,203.71,203.66,1.3]
[1757247376782,7.62,203.71,203.65,1.3]
[1757247377179,5.51030216,203.7,203.65,1.3]
[1757247377780,7.62,203.69,203.65,1.3]
[1757247377987,5.51030216,203.7,203.65,1.3]
[1757247378486,7.62,203.69,203.65,1.3]
[1757247378988,7.62,203.69,203.63,119.32]
[1757247379389,7.9,203.69,203.63,119.32]
[1757247380187,13.41030216,203.69,203.63,119.32]
[1757247380783,5.51030216,203.7,203.63,119.32]
[1757247381595,7.9,203.69,203.64,1.31]
[1757247381785,5.51030216,203.7,203.63,119.32]
[1757247382290,7.9,203.69,203.64,1.31]
[1757247382488,5.51030216,203.7,203.63,119.32]
[1757247382684,7.9,203.69,203.64,1.31]
[1757247383185,7.9,203.69,203.63,119.32]
[1757247383388,5.51030216,203.7,203.63,119.32]
[1757247383790,7.9,203.69,203.64,1.31]
[1757247384193,5.51030216,203.7,203.63,119.32]
[1757247384487,7.9,203.69,203.64,1.31]
[1757247384688,5.51030216,203.7,203.63,119.32]
[1757247385494,7.9,203.69,203.64,1.31]
[1757247385983,5.51030216,203.7,203.63,119.32]
[1757247386188,7.9,203.69,203.64,1.31]
[1757247386390,5.51030216,203.71,203.64,1.31]
[1757247386584,13.41030216,203.71,203.64,1.31]
[1757247387994,13.41030216,203.71,203.65,1.31]
[1757247388493,7.9,203.71,203.65,1.31]
[1757247388695,13.41030216,203.71,203.65,1.31]
[1757247389890,7.9,203.71,203.65,5.7284]
[1757247392095,13.41030216,203.71,203.65,5.7284]
[1757247397399,13.41030216,203.71,203.65,1.31]
[1757247404698,5.51030216,203.7,203.65,1.31]
[1757247405299,7.9,203.69,203.65,1.31]
[1757247405499,5.51030216,203.7,203.65,1.31]
[1757247405705,7.9,203.69,203.65,1.31]
[1757247405908,7.9,203.69,203.61,1.3]
[1757247406408,7.9,203.69,203.63,4.4189]
[1757247407011,7.9,203.69,203.63,5.7189]
[1757247408713,7.9,203.69,203.63,1.3]
[1757247413613,7.9,203.69,203.63,5.7189]
[1757247418314,13.41030216,203.69,203.63,5.7189]
[1757247418718,13.41030216,203.69,203.63,1.3]
[1757247421015,5.51030216,203.68,203.63,1.3]
[1757247421217,7.58,203.67,203.61,4.4193]
[1757247421713,7.58,203.67,203.6,1.3]
[1757247422622,13.09030216,203.67,203.6,1.3]
[1757247427820,5.51030216,203.66,203.54,1.3]
[1757247428021,7.58,203.62,203.54,1.3]
[1757247428522,7.58,203.62,203.56,4.4204]
[1757247428723,7.58,203.62,203.56,5.7204]
[1757247430321,7.58,203.62,203.56,4.4204]
[1757247430925,7.58,203.62,203.54,4.4208]
[1757247432123,7.58,203.62,203.55,4.4206]
[1757247432523,7.58,203.63,203.53,120.24]
[1757247432719,5.51030216,203.64,203.53,120.24]
[1757247432925,7.58,203.63,203.54,4.4208]
[1757247434420,7.58,203.63,203.53,120.24]
[1757247434621,7.58,203.63,203.54,1.3]
[1757247436324,5.51030216,203.66,203.58,4.4199]
[1757247436520,7.58,203.65,203.58,5.7199]
[1757247437926,7.58,203.65,203.59,4.4197]
[1757247438924,7.58,203.66,203.6,5.7195]
[1757247440127,7.58,203.66,203.61,4.4193]
[1757247440426,7.61,203.67,203.61,4.4193]
[1757247444128,7.61,203.67,203.6,1.3]
[1757247453136,7.61,203.67,203.59,4.4197]
[1757247454241,13.12030216,203.67,203.59,4.4197]
[1757247459235,7.61,203.65,203.58,1.29]
[1757247460748,7.61,203.65,203.58,5.71]
[1757247460944,0.03192164,203.64,203.58,5.71]
[1757247462452,7.61,203.63,203.55,1.29]
[1757247462653,7.61,203.62,203.55,1.29]
[1757247462850,13.12030216,203.62,203.55,1.29]
[1757247467051,7.61,203.61,203.54,1.29]
[1757247467253,7.61,203.61,203.54,5.7108]
[1757247481068,7.61,203.61,203.55,1.31]
[1757247484173,7.61,203.61,203.55,5.7306]
[1757247484369,7.61,203.61,203.54,1.31]
[1757247484868,7.61,203.61,203.56,4.4204]
[1757247485666,7.61,203.61,203.57,1.31]
[1757247485866,7.61,203.61,203.58,120.19]
[1757247486271,7.61,203.61,203.59,1.31]
[1757247487367,7.51,203.65,203.58,118.88]
[1757247487568,5.51030216,203.66,203.58,118.88]
[1757247487762,5.51030216,203.65,203.58,118.88]
[1757247487969,7.51,203.64,203.58,118.88]
[1757247488164,7.51,203.65,203.58,118.88]
[1757247488871,5.51030216,203.66,203.58,118.88]
[1757247489268,7.51,203.65,203.58,118.88]
[1757247489472,5.51030216,203.66,203.58,118.88]
[1757247489776,7.51,203.65,203.59,118.88]
[1757247489976,5.51030216,203.66,203.59,118.88]
[1757247490270,7.51,203.65,203.59,118.88]
[1757247490676,5.51030216,203.66,203.59,118.88]
[1757247491267,7.51,203.65,203.59,118.88]
[1757247491473,5.51030216,203.66,203.59,118.88]
[1757247491877,7.51,203.65,203.58,1.31]
[1757247492074,5.51030216,203.66,203.59,17.14]
[1757247492274,7.51,203.65,203.59,17.14]
[1757247494077,7.51,203.65,203.58,34.13]
[1757247494278,7.51,203.65,203.58,37.89]
[1757247495779,5.51030216,203.66,203.58,37.89]
[1757247495977,7.51,203.65,203.58,37.89]
[1757247496179,5.51030216,203.66,203.58,37.89]
[1757247496479,7.51,203.65,203.59,1.31]
[1757247503089,7.51,203.65,203.62,1.3]
[1757247503289,5.51030216,203.68,203.62,1.3]
[1757247503593,5.51030216,203.68,203.61,4.4193]
[1757247503594,7.39,203.67,203.61,5.7193]
[1757247511495,7.39,203.67,203.59,1.29]
[1757247513902,7.39,203.67,203.63,1.29]
[1757247514201,7.39,203.71,203.63,1.29]
[1757247517802,12.90030216,203.71,203.63,1.29]
[1757247522409,5.51030216,203.7,203.63,1.29]
[1757247522906,7.39,203.69,203.63,1.29]
[1757247526102,7.39,203.69,203.63,5.7089]
[1757247536318,12.90030216,203.69,203.63,5.7089]
[1757247539926,12.90030216,203.69,203.63,1.29]
[1757247540625,8.14,203.67,203.61,5.7193]
[1757247542226,8.14,203.67,203.61,1.3]
[1757247542432,13.65030216,203.67,203.61,1.3]
[1757247549642,5.51030216,203.66,203.61,1.3]
[1757247550641,8.14,203.65,203.61,1.3]
[1757247551136,5.51030216,203.66,203.61,1.3]